[Event "GEO-AZE Women Match 2024"]
[Site "Tbilisi"]
[Date "2024.03.01"]
[Round "4.2"]
[White "Melia, Salome"]
[Black "Fataliyeva, Ulviyya"]
[Result "1/2-1/2"]
[ECO "C88"]
[WhiteElo "2355"]
[BlackElo "2384"]
[Annotator "TA"]
[PlyCount "90"]
[EventDate "2024.02.26"]
[EventType "team-tourn"]
[EventCountry "GEO"]
[SourceTitle "playchess.com"]
[Source "ChessBase"]
[SourceQuality "1"]
[WhiteTeam "Georgia"]
[BlackTeam "Azerbaijan"]
[WhiteTeamCountry "GEO"]
[BlackTeamCountry "AZE"]
[TimeControl "40/5400+30:1800+30"]

{[%evp 16,90,16,31,17,36,41,25,55,19,45,37,55,35,47,36,33,39,56,67,52,48,82,104,83,92,128,45,59,41,42,50,34,47,65,0,0,0,0,0,-6,-6,0,0,0,0,6,0,0,0,0,-2,0,0,0,0,0,0,0,0,8,8,8,0,0,0,12,8,8,8,8,8,12,12,12,8,8]} 1. e4 {[%emt 0:00:10]} e5 {[%emt 0:00:08]} 2. Nf3 {[%emt 0:00:06]} Nc6 {[%emt 0:00:04]} 3. Bb5 {[%emt 0:00:05]} a6 {[%emt 0:00:04]} 4. Ba4 {[%emt 0:00:05]} Nf6 {[%emt 0:00:05]} 5. O-O {[%emt 0:00:20]} Be7 {[%emt 0:00:09]} 6. Re1 {[%emt 0:01:16]} b5 {[%emt 0:00:09]} 7. Bb3 {[%emt 0:00:05]} O-O {[%emt 0:00:09]} 8. h3 {[%emt 0:00:16]} Bb7 {[%emt 0:00:20]} 9. d3 {[%emt 0:00:09]} d5 {[%emt 0:00:28]} 10. exd5 {[%emt 0:00:14]} Nxd5 {[%emt 0:00:11]} 11. a4 {[%emt 0:00:10]} b4 {[%emt 0:03:10] White has an edge.} 12. a5 {[%emt 0:04:13]} Bc5 {[%emt 0:21:46]} 13. Nbd2 {[%emt 0:03:24][%cal Od2e4]} Nd4 {[%emt 0:06:19]} 14. Nxd4 {[%emt 0:04:02]} Bxd4 {[%emt 0:01:17]} 15. Nf3 {[%emt 0:01:00][%cal Of3d4]} Nf4 {[%emt 0:02:33]} 16. Bxf4 {[%emt 0:08:29]} (16. Nxe5 $2 {perishes.} Nxg2 17. Re2 Nh4 $19) 16... exf4 {[%emt 0:01:03]} 17. Nxd4 {[%emt 0:00:05]} Qxd4 {[%emt 0:00:22]} 18. Qh5 {[%emt 0:06:16] aiming for Re7.} (18. Qe2 {simplifies} Qd6 19. f3 Bd5 20. Bxd5 Qxd5 21. Qe5) 18... Qxb2 {[%emt 0:01:54]} 19. Qe5 {[%emt 0:11:02]} Qxe5 {[%emt 0:06:05]} 20. Rxe5 {[%emt 0:00:05]} f3 {[%emt 0:10:26] [#]} 21. gxf3 {[%emt 0:07:17]} (21. g4 $1 $16) 21... Bxf3 $14 {[%emt 0:00:53]} 22. Rf5 {[%emt 0:07:38]} Bc6 {[%emt 0:00:41]} 23. Rc5 {[%emt 0:01:18]} Bd7 {[%emt 0:01:11]} 24. Rxc7 {[%emt 0:00:08]} Bxh3 {[%emt 0:02:19]} 25. Re1 {[%emt 0:06:04] Inhibits Be6. White is more active.} (25. Ra4 $1 $14) 25... Be6 $11 {[%emt 0:00:23] The position is equal.} 26. Bxe6 {[%emt 0:05:31]} fxe6 {[%emt 0:00:11]} 27. Rxe6 {[%emt 0:00:04][%mdl 4096] Endgame. KRR-KRR} Rf5 {[%emt 0:00:09]} 28. Rb6 {[%emt 0:02:52]} Rg5+ {[%emt 0:09:26]} 29. Kf1 {[%emt 0:00:10]} Rxa5 {[%emt 0:01:05]} 30. Rxb4 {[%emt 0:00:05]} Rg5 {[%emt 0:02:33] Prevents Rg4.} 31. Ra4 {[%emt 0:07:46]} h5 {[%emt 0:01:52]} 32. d4 {[%emt 0:04:36][%cal Bd3d4,Bd4d5,Bd5d6][%mdl 32]} a5 {[%emt 0:01:13]} 33. Rc3 {[%emt 0:08:18]} Rf5 {[%emt 0:07:58]} 34. Rd3 {[%emt 0:04:30]} g5 {[%emt 0:00:31]} 35. d5 {[%emt 0:01:04]} Kf7 {[%emt 0:00:23]} 36. c4 {[%emt 0:04:45]} Rf4 {[%emt 0:01:52]} 37. d6 {[%emt 0:02:05]} Ke8 {[%emt 0:00:41]} 38. Rd5 {[%emt 0:00:23][%csl LRa5,LRg5]} Kd7 {[%emt 0:02:01]} 39. Rxg5 {[%emt 0:00:23]} Raf8 {[%emt 0:00:11]} 40. Ra2 {[%emt 0:00:00]} Kxd6 {[%emt 0:00:00]} 41. Rxh5 {[%emt 0:06:33]} (41. Raxa5 Rxc4 42. Ra2 (42. Rxh5 Rc2 $11) 42... Ke7) 41... a4 {[%emt 0:01:49]} 42. Ra5 {[%emt 0:01:15]} Rxc4 {[%emt 0:00:49]} 43. R5xa4 {[%emt 0:00:12]} Rxa4 {[%emt 0:00:36]} 44. Rxa4 {[%emt 0:00:05]} Ke5 {[%emt 0:00:12]} 45. Ra3 {[%emt 0:01:25]} Kf4 {[%emt 0:00:29] Weighted Error Value: White=0.08 (flawless) /Black=0.08 (flawless) .  Mistake:       	White=2     	---        Inaccurate:     	White=1     	Black=4      OK:         	White=17    	Black=15     Best:        	---       	Black=1} 1/2-1/2

[Event "GEO-AZE Women Match 2024"]
[Site "Tbilisi"]
[Date "2024.03.01"]
[Round "4.3"]
[White "Khotenashvili, Bella"]
[Black "Beydullayeva, Govhar"]
[Result "0-1"]
[ECO "A28"]
[WhiteElo "2467"]
[BlackElo "2374"]
[Annotator "TA"]
[PlyCount "72"]
[EventDate "2024.02.26"]
[EventType "team-tourn"]
[EventCountry "GEO"]
[SourceTitle "playchess.com"]
[Source "ChessBase"]
[SourceQuality "1"]
[WhiteTeam "Georgia"]
[BlackTeam "Azerbaijan"]
[WhiteTeamCountry "GEO"]
[BlackTeamCountry "AZE"]
[TimeControl "40/5400+30:1800+30"]

{[%evp 10,72,21,0,0,0,0,0,0,-13,27,27,17,18,11,6,11,11,29,7,5,3,7,12,9,0,47,43,57,-47,-15,-100,-64,-561,-317,-544,-554,-1122,-612,-841,-839,-1762,-1133,-1087,-589,-572,-604,-604,-563,-548,-477,-529,-487,-630,-622,-671,-639,-799,-798,-784,-718,-614,-603,-791,-761]} 1. c4 {[%emt 0:00:26]} Nf6 {[%emt 0:00:07]} 2. Nc3 {[%emt 0:00:30]} e5 {[%emt 0:00:09]} 3. Nf3 {[%emt 0:00:12]} Nc6 {[%emt 0:00:19]} 4. e3 {[%emt 0:00:05]} Bb4 {[%emt 0:00:44]} 5. Qc2 {[%emt 0:00:07]} Bxc3 {[%emt 0:02:49]} 6. bxc3 {[%emt 0:00:46]} e4 {[%emt 0:02:50]} 7. Ng5 {[%emt 0:00:34]} Qe7 {[%emt 0:01:34]} 8. f3 {[%emt 0:00:37]} exf3 {[%emt 0:01:43] The position is equal.} 9. Nxf3 {[%emt 0:00:13]} d6 {[%emt 0:04:57]} 10. Be2 {[%emt 0:04:11]} Bg4 {[%emt 0:03:12]} 11. Rb1 {[%emt 0:01:02]} b6 {[%emt 0:06:02]} 12. O-O {[%emt 0:10:20]} O-O {[%emt 0:04:46]} 13. d3 {[%emt 0:04:43]} d5 {[%emt 0:18:49]} 14. d4 {[%emt 0:33:05]} dxc4 {[%emt 0:12:09]} 15. Bxc4 {[%emt 0:01:46] aiming for Ng5.} Bh5 {[%emt 0:03:40]} 16. Bd3 {[%emt 0:29:08]} Bg6 {[%emt 0:01:35] Prevents e4.} 17. Ng5 {[%emt 0:02:10]} (17. Bxg6 {simplifies} fxg6 18. Qb3+ Kh8 19. c4) 17... Rae8 {[%emt 0:13:37]} (17... h6 $11 18. Bxg6 fxg6) 18. Bxg6 $14 {[%emt 0:04:28]} fxg6 {[%emt 0:03:47]} 19. Rf3 {[%emt 0:01:37]} (19. e4 $1 $14 Na5 (19... Nxe4 20. Qb3+ Kh8 21. Rf7 $16) 20. e5) 19... Na5 $1 $15 {[%emt 0:08:11]} 20. Rb5 {[%emt 0:00:12] [#]} (20. a4 $1 $11 {keeps the balance.}) 20... c5 $1 $17 {[%emt 0:02:07]} 21. Ba3 $2 {[%emt 0:01:51][%mdl 8192] Loses the game.} (21. dxc5 $15 a6 22. Rb4 (22. Rxb6 $2 {perishes.} Qxc5 23. Rbxf6 gxf6 $19)) 21... Nd5 {[%emt 0:01:35]} 22. Rxf8+ $2 {[%emt 0:02:53]} (22. h4 {only move.} Nc4 (22... Nxe3 $2 23. Qd3 $19) (22... Rxf3 $2 23. Nxf3 Qxe3+ 24. Kh1 $19) 23. Bc1) 22... Rxf8 $19 {[%emt 0:00:29] Black is clearly winning.} 23. Qe4 {[%emt 0:00:30]} Qxg5 {[%emt 0:01:25]} 24. Bxc5 {[%emt 0:00:13]} bxc5 {[%emt 0:00:40]} 25. Qe6+ {[%emt 0:00:44]} Kh8 {[%emt 0:00:31][%cal Od5e3] ( -> ...Nxe3!)} 26. h4 {[%emt 0:00:36]} Qxe3+ {[%emt 0:02:18]} 27. Qxe3 {[%emt 0:00:01]} Nxe3 {[%emt 0:00:01]} 28. Rxa5 {[%emt 0:00:13]} cxd4 {[%emt 0:00:14]} 29. cxd4 {[%emt 0:00:01][%mdl 4096] Endgame. KRN-KR} Rf1+ {[%emt 0:00:49]} 30. Kh2 {[%emt 0:00:08]} Rf7 {[%emt 0:00:28]} 31. Kh3 {[%emt 0:01:37]} h5 {[%emt 0:01:14]} 32. Re5 {[%emt 0:00:55]} Ng4 {[%emt 0:00:16]} 33. Re6 {[%emt 0:00:29]} Kh7 {[%emt 0:00:56]} 34. d5 {[%emt 0:00:08]} Rd7 {[%emt 0:00:58]} 35. d6 {[%emt 0:00:05]} Nf6 {[%emt 0:00:05]} 36. Kg3 {[%emt 0:00:49] [#]} Rxd6 $3 {[%emt 0:00:21][%mdl 512] Weighted Error Value: White=1.29/Black=0.89.  Loses game:     	White=1     	---        Mistake:       	White=3     	Black=1      Inaccurate:     	White=2     	Black=3      OK:         	White=3     	Black=8      Best:        	White=2     	---        Strong:       	---       	Black=2} 0-1

[Event "GEO-AZE Women Match 2024"]
[Site "Tbilisi"]
[Date "2024.03.01"]
[Round "4.4"]
[White "Arabidze, Meri"]
[Black "Mammadova, Gulnar"]
[Result "1/2-1/2"]
[ECO "E49"]
[WhiteElo "2466"]
[BlackElo "2351"]
[Annotator "TA"]
[PlyCount "123"]
[EventDate "2024.02.26"]
[EventType "team-tourn"]
[EventCountry "GEO"]
[SourceTitle "playchess.com"]
[Source "ChessBase"]
[SourceQuality "1"]
[WhiteTeam "Georgia"]
[BlackTeam "Azerbaijan"]
[WhiteTeamCountry "GEO"]
[BlackTeamCountry "AZE"]
[TimeControl "40/5400+30:1800+30"]

{[%evp 38,123,12,16,10,0,92,84,79,77,90,68,98,100,91,91,80,83,68,-8,-12,-64,-57,-69,-60,-137,-170,-164,-171,-157,-167,-157,-157,-150,-163,-144,-118,-120,-118,-136,-95,-102,-81,-90,-81,-75,-75,-106,0,0,0,0,0,0,0,0,0,0,0,0,0,0,0,-8,0,-51,0,-8,-8,-8,0,0,0,0,0,-25,0,0,0,0,0,0,0,0,0,-8,-8,-8]} 1. d4 {[%emt 0:00:03]} Nf6 {[%emt 0:00:11]} 2. c4 {[%emt 0:00:07]} e6 {[%emt 0:00:08]} 3. Nc3 {[%emt 0:00:31]} Bb4 {[%emt 0:00:15]} 4. e3 {[%emt 0:00:52]} O-O {[%emt 0:01:38]} 5. Bd3 {[%emt 0:00:14]} d5 {[%emt 0:00:28]} 6. a3 {[%emt 0:00:26]} Bxc3+ {[%emt 0:00:42]} 7. bxc3 {[%emt 0:00:02]} dxc4 {[%emt 0:00:41]} 8. Bxc4 {[%emt 0:00:01]} c5 {[%emt 0:00:08]} 9. Ne2 {[%emt 0:00:20]} Qc7 {[%emt 0:00:50]} 10. Bd3 {[%emt 0:00:10]} Nc6 {[%emt 0:04:35]} 11. f4 {[%emt 0:01:02] E49: Nimzo-Indian: Rubinstein: 5 Bd3 d5 6 a3 Bxc3+ 7 bxc3.} b6 {[%emt 0:03:04]} 12. O-O {[%emt 0:00:23]} Rd8 {[%emt 0:00:43]} 13. Ng3 {[%emt 0:05:52]} Bb7 {[%emt 0:03:24]} 14. Qe2 {[%emt 0:05:13]} Rac8 {[%emt 0:07:22]} 15. Bb2 {[%emt 0:09:08]} Na5 {[%emt 0:07:46]} 16. Rac1 {[%emt 0:15:49]} Nb3 $146 {[%emt 0:10:34]} ({Predecessor:} 16... Qe7 17. h3 a6 18. Kh2 b5 19. e4 Nc4 20. Ba1 Ne8 21. f5 Qg5 22. Rce1 Nc7 {0-1 Salem,A (2644)-Nepomniachtchi,I (2766) Wch Rapid Almaty 2022 (4)}) 17. Rcd1 {[%emt 0:02:48]} cxd4 {[%emt 0:02:05]} 18. cxd4 {[%emt 0:00:17]} g6 {[%emt 0:06:26]} 19. h3 {[%emt 0:09:43]} Nd5 {[%emt 0:20:36]} 20. Qf2 {[%emt 0:03:41]} f5 $1 {[%emt 0:02:47]} 21. e4 {[%emt 0:02:15]} fxe4 {[%emt 0:01:05]} (21... Nc3 $11 {keeps the balance.}) 22. Nxe4 $16 {[%emt 0:00:13]} Rf8 {[%emt 0:02:13]} 23. g3 $1 {[%emt 0:00:33]} Qc6 {[%emt 0:04:07]} 24. Kh2 {[%emt 0:02:07]} Na5 {[%emt 0:02:44]} 25. Rde1 {[%emt 0:04:51]} Nc4 {[%emt 0:03:43]} 26. Bxc4 {[%emt 0:04:03]} Qxc4 {[%emt 0:00:02]} 27. Nd6 {[%emt 0:33:16]} Qd3 {[%emt 0:15:43]} 28. Rd1 {[%emt 0:00:30]} (28. Nxb7 $2 Rc2 29. Rc1 Rxf2+ 30. Rxf2 h5 $19) (28. Nxc8 $14 Rxc8 29. Rc1 (29. Rxe6 $2 Rc2 $19)) 28... Qb3 $1 $11 {[%emt 0:00:00]} 29. Nxc8 {[%emt 0:00:00]} (29. Nxb7 $2 {too greedy.} Ne3 30. Rd2 Nxf1+ 31. Qxf1 Rc2 $19) (29. Rfe1 $11 Rc2 30. Rd2 Rxd2 31. Qxd2) 29... Ne3 $1 $15 {[%emt 0:00:00]} 30. Ne7+ {[%emt 0:00:00]} Kf7 {[%emt 0:00:00]} 31. f5 {[%emt 0:00:00]} (31. Rd2 $1 $15 Nxf1+ (31... Kxe7 32. Rc1 $16) 32. Qxf1 Kxe7 33. g4) 31... Kxe7 $17 {[%emt 0:00:00]} 32. f6+ {[%emt 0:00:00]} Kf7 {[%emt 0:00:00]} 33. Rd2 {[%emt 0:00:00]} Nxf1+ {[%emt 0:00:00]} 34. Qxf1 {[%emt 0:00:00] [#]} Rc8 $1 {[%emt 0:00:00]} 35. d5 {[%emt 0:00:00]} Bxd5 {[%emt 0:00:00]} ({Weaker is} 35... exd5 36. Qf2 $11) 36. Qe2 {[%emt 0:00:00]} Rc7 {[%emt 0:01:13]} 37. g4 {[%emt 0:00:00] [#]} h6 $1 {[%emt 0:00:53]} 38. Qf2 {[%emt 0:01:20]} Qc4 {[%emt 0:00:34]} 39. Qg3 {[%emt 0:00:30]} Rd7 {[%emt 0:01:17]} 40. Kg1 {[%emt 0:00:00]} Qe4 {[%emt 0:00:00]} 41. Kf2 {[%emt 0:04:56]} g5 {[%emt 0:05:08]} 42. Re2 {[%emt 0:04:59]} Qf4+ {[%emt 0:03:13]} (42... Qc4 $17 43. Rd2 Rc7) 43. Qxf4 $11 {[%emt 0:00:07]} gxf4 {[%emt 0:00:02]} 44. Be5 {[%emt 0:02:00]} f3 {[%emt 0:00:53]} 45. Rd2 {[%emt 0:00:24]} b5 {[%emt 0:03:27]} 46. h4 {[%emt 0:01:52]} a5 {[%emt 0:02:43]} 47. Kg3 {[%emt 0:04:08]} b4 {[%emt 0:02:46]} 48. axb4 {[%emt 0:00:07]} axb4 {[%emt 0:00:03]} 49. Rc2 {[%emt 0:06:21]} b3 {[%emt 0:03:35]} 50. Rc8 {[%emt 0:00:37]} Rb7 {[%emt 0:01:00]} 51. Bb2 {[%emt 0:07:18]} (51. Rc1 $11) 51... Ra7 {[%emt 0:05:05]} (51... e5 $1 $15 52. Rd8 Be6) 52. g5 {[%emt 0:01:13]} hxg5 {[%emt 0:00:39]} 53. hxg5 {[%emt 0:00:07]} e5 {[%emt 0:06:01]} 54. Rc5 {[%emt 0:03:32]} Rd7 {[%emt 0:02:55]} 55. Bxe5 {[%emt 0:01:02]} Kg6 {[%emt 0:00:07]} 56. Bb2 {[%emt 0:02:23]} Be4 {[%emt 0:01:27]} 57. Re5 {[%emt 0:00:45]} Bb7 {[%emt 0:01:00]} 58. Re7 {[%emt 0:00:41]} Rxe7 {[%emt 0:00:45]} 59. fxe7 {[%emt 0:01:08]} Bc6 {[%emt 0:00:04]} 60. Bf6 {[%emt 0:00:00]} Kf5 {[%emt 0:00:16]} 61. e8=Q {[%emt 0:00:16]} Bxe8 {[%emt 0:00:05]} 62. Kxf3 {[%emt 0:01:14]} 1/2-1/2

[Event "GEO-AZE Women Match 2024"]
[Site "Tbilisi"]
[Date "2024.03.01"]
[Round "4.5"]
[White "Batsiashvili, Nino"]
[Black "Balajayeva, Khanim"]
[Result "1/2-1/2"]
[ECO "C50"]
[WhiteElo "2451"]
[BlackElo "2350"]
[Annotator "TA"]
[PlyCount "34"]
[EventDate "2024.02.26"]
[EventType "team-tourn"]
[EventCountry "GEO"]
[SourceTitle "playchess.com"]
[Source "ChessBase"]
[SourceQuality "1"]
[WhiteTeam "Georgia"]
[BlackTeam "Azerbaijan"]
[WhiteTeamCountry "GEO"]
[BlackTeamCountry "AZE"]
[TimeControl "40/5400+30:1800+30"]

{[%evp 10,34,8,4,3,0,0,0,0,0,0,0,0,0,6,-20,7,0,0,0,0,0,0,0,16,-22,-25]} 1. e4 {[%emt 0:00:03]} e5 {[%emt 0:00:06]} 2. Nf3 {[%emt 0:00:05]} Nc6 {[%emt 0:00:07]} 3. Bc4 {[%emt 0:00:04]} Nf6 {[%emt 0:00:14]} 4. d3 {[%emt 0:00:04]} Bc5 {[%emt 0:00:19]} 5. Nc3 {[%emt 0:00:08]} h6 {[%emt 0:01:28]} 6. h3 {[%emt 0:00:20] The position is equal.} a6 {[%emt 0:01:03]} 7. Be3 {[%emt 0:00:45]} Bxe3 {[%emt 0:09:00]} 8. fxe3 {[%emt 0:00:08]} d6 {[%emt 0:01:19]} 9. a4 {[%emt 0:00:06]} Be6 {[%emt 0:01:42]} 10. Nd2 {[%emt 0:00:52]} O-O {[%emt 0:04:49]} 11. O-O {[%emt 0:00:24]} Qe7 {[%emt 0:13:03]} 12. Rf3 {[%emt 0:15:20]} Bxc4 {[%emt 0:03:53]} 13. Nxc4 {[%emt 0:02:55]} Qe6 {[%emt 0:00:16][%cal Of6e4]} 14. Qf1 {[%emt 0:29:35]} Ne7 {[%emt 0:03:57]} 15. a5 {[%emt 0:01:56]} Nh7 {[%emt 0:02:58]} 16. Qe2 {[%emt 0:12:32]} f5 {[%emt 0:14:57]} 17. Raf1 {[%emt 0:01:32]} Ng5 {[%emt 0:05:36] Not much happened in this game.   Weighted Error Value: White=0.07 (flawless) /Black=0.05 (flawless) .  Inaccurate:     	White=2     	Black=1      OK:         	White=4     	Black=4} 1/2-1/2

[Event "GEO-AZE Women Match 2024"]
[Site "Tbilisi"]
[Date "2024.03.02"]
[Round "5.1"]
[White "Mammadzada, Gunay"]
[Black "Melia, Salome"]
[Result "1-0"]
[ECO "E11"]
[WhiteElo "2449"]
[BlackElo "2355"]
[Annotator "TA"]
[PlyCount "119"]
[EventDate "2024.02.26"]
[EventType "team-tourn"]
[EventCountry "GEO"]
[SourceTitle "playchess.com"]
[Source "ChessBase"]
[SourceQuality "1"]
[WhiteTeam "Azerbaijan"]
[BlackTeam "Georgia"]
[WhiteTeamCountry "AZE"]
[BlackTeamCountry "GEO"]
[TimeControl "40/5400+30:1800+30"]

{[%evp 46,119,81,79,102,89,103,96,101,66,76,78,79,71,82,68,85,83,67,27,26,0,0,0,0,0,0,0,95,101,83,86,70,76,81,31,134,60,122,47,41,0,0,-83,35,47,26,58,41,38,317,317,321,306,440,457,461,443,537,527,514,525,613,556,828,838,908,914,29984,29985,29984,29986,29986,29987,29991,29992]} 1. d4 {[%emt 0:00:01]} Nf6 {[%emt 0:00:28]} 2. c4 {[%emt 0:00:15]} e6 {[%emt 0:00:05]} 3. g3 {[%emt 0:00:05]} d5 {[%emt 0:00:23]} 4. Bg2 {[%emt 0:00:08]} Bb4+ {[%emt 0:00:45]} 5. Bd2 {[%emt 0:01:26]} a5 {[%emt 0:00:25]} 6. Nf3 {[%emt 0:04:00]} O-O {[%emt 0:00:25]} 7. a3 {[%emt 0:00:31]} Be7 {[%emt 0:00:39]} 8. Qc2 {[%emt 0:00:33]} c6 {[%emt 0:00:19]} 9. O-O {[%emt 0:00:35]} Nbd7 {[%emt 0:00:30]} 10. Bf4 {[%emt 0:02:49] E11: Bogo-Indian.} b6 {[%emt 0:00:39]} 11. cxd5 {[%emt 0:04:08]} cxd5 {[%emt 0:00:11]} 12. Nc3 {[%emt 0:04:18]} Ba6 {[%emt 0:00:21]} 13. a4 {[%emt 0:06:09]} Rc8 {[%emt 0:01:40]} 14. Qb3 $146 {[%emt 0:07:40]} ({Predecessor:} 14. Qd1 Rc4 15. Rc1 Qa8 16. b3 Rc6 17. Nb5 Rxc1 18. Qxc1 Rc8 19. Qb2 Bxb5 20. axb5 {½-½ Andreikin,D (2729)-Le,Q (2709) Chess.com Rapid Wk16 Swiss 2022 (7)}) 14... Bc4 {[%emt 0:01:33]} 15. Qd1 {[%emt 0:00:09]} Bb4 {[%emt 0:05:04]} 16. Nb5 {[%emt 0:11:10]} Bxb5 {[%emt 0:06:20]} 17. axb5 {[%emt 0:00:08]} Ne4 {[%emt 0:00:17]} 18. Qd3 {[%emt 0:03:54]} Bd6 {[%emt 0:04:16]} 19. Bxd6 {[%emt 0:12:56]} Nxd6 {[%emt 0:00:07]} 20. Rfc1 {[%emt 0:00:17]} h6 {[%emt 0:08:08]} 21. e3 {[%emt 0:39:48]} Qe7 {[%emt 1:08:25]} 22. Bf1 {[%emt 0:00:30]} Ne4 {[%emt 0:00:30]} 23. Rc6 {[%emt 0:00:30]} Qf6 {[%emt 0:00:30]} 24. Qe2 {[%emt 0:00:30]} g5 {[%emt 0:00:00]} 25. Rac1 {[%emt 0:00:00]} Rcd8 {[%emt 0:01:00]} 26. Ne1 {[%emt 0:01:00]} Qe7 {[%emt 0:00:30]} 27. Bg2 {[%emt 0:00:30]} Nd6 {[%emt 0:00:30]} 28. Nf3 {[%emt 0:00:00]} Nb8 {[%emt 0:00:30]} 29. Rc7 {[%emt 0:00:00]} Rd7 {[%emt 0:00:00]} 30. R7c2 {[%emt 0:00:00]} f6 $1 {[%emt 0:00:00]} 31. Nd2 {[%emt 0:02:00]} Kg7 {[%emt 0:01:30]} 32. f3 {[%emt 0:00:30]} f5 {[%emt 0:00:00]} 33. h3 {[%emt 0:00:00]} f4 {[%emt 0:00:00]} 34. exf4 {[%emt 0:00:00]} gxf4 {[%emt 0:00:00]} 35. g4 {[%emt 0:00:00]} Qf6 {[%emt 0:00:00]} 36. Qd3 $1 {[%emt 0:00:09]} e5 {[%emt 0:00:00]} (36... Re7 $11) 37. dxe5 $16 {[%emt 0:00:25]} Qxe5 {[%emt 0:00:00]} 38. Nb3 {[%emt 0:00:24]} Nc4 {[%emt 0:00:00]} 39. Nd4 {[%emt 0:00:31]} (39. Qd4 {simplifies} Qf6 40. h4 Re7 41. Qxf6+ Rxf6 42. Nd4) 39... Ne3 {[%emt 0:00:51]} 40. Rc3 {[%emt 0:00:00]} (40. Rc8 $16 {Rxf8 is the strong threat.} Rdf7 41. h4 Rxc8 42. Rxc8) 40... Re7 {[%emt 0:00:00] [#]} (40... Rf6 $14) 41. Bf1 {[%emt 0:13:18]} ({White should try} 41. h4 $1 $16) 41... Qf6 {[%emt 0:10:54]} ({Better is} 41... h5 $14) 42. Qd2 {[%emt 0:01:39]} (42. Rc8 $16) 42... Qh4 $14 {[%emt 0:09:15]} 43. Qf2 {[%emt 0:00:30]} Qf6 $1 {[%emt 0:00:24]} 44. Rc7 {[%emt 0:04:09] [#]} (44. Rd3 $11) 44... Rff7 {[%emt 0:01:37]} (44... Rxc7 $1 $17 45. Rxc7+ Rf7 46. Rxf7+ Kxf7) 45. Rxe7 $14 {[%emt 0:00:05]} Rxe7 {[%emt 0:00:42]} 46. Qd2 $1 {[%emt 0:00:36]} Nd7 {[%emt 0:04:08]} 47. Rc6 {[%emt 0:01:13]} Qe5 $2 {[%emt 0:04:15][%mdl 8192]} ({Black should play} 47... Qh4 $14) 48. Qd3 $18 {[%emt 0:00:57]} Nf8 {[%emt 0:03:16]} 49. Rxb6 {[%emt 0:04:30]} Rf7 {[%emt 0:01:24]} (49... Rc7 $142) 50. Qc3 $18 {[%emt 0:02:06]} Kg8 {[%emt 0:01:21]} 51. Rxh6 {[%emt 0:01:55]} Nd1 {[%emt 0:01:14]} 52. Qd2 {[%emt 0:03:42]} (52. Qxa5 Qxd4+ 53. Kh1 Qf2 (53... Qxb2 $2 54. Qe1 $19) 54. Qb6 Qxf1+ 55. Qg1 Qxf3+ (55... Nf2+ $2 56. Kh2 $19) 56. Qg2 Qxg2+ 57. Kxg2 f3+ (57... Nxb2 $2 58. Kf3 $19) 58. Kh2 f2 (58... Nxb2 $2 59. Rc6 $19) 59. Rh5 f1=Q (59... f1=R 60. Rg5+ Kh7 61. Rh5+ Kg7 62. Rf5 R1xf5 63. gxf5 Nxb2 64. Kg3 d4 65. Kf4 d3 66. Ke3 Re7+ 67. Kd2 Re2+ 68. Kc3 d2 69. Kb4 d1=Q 70. f6+ Kxf6 71. Kc5 Qg1+ 72. Kc6 Re6+ 73. Kb7 Qb6+ 74. Kc8 Re8#) 60. Rg5+ Kh8 61. Rh5+ Nh7 62. Rf5 Rxf5 (62... Qe2+ {is a self mate.} 63. Kg3 Rxf5 64. gxf5 Ne3 65. Kf4 Nxf5 66. Kxf5 Qe4#) 63. gxf5 Qf2+ (63... Qxb5 {leads to mate.} 64. h4 Qe2+ 65. Kg3 Ne3 66. Kf4 Nxf5 67. Kxf5 Qe4#) 64. Kh1 Ne3 65. b6 Qg2#) (52. Rh5 Qxh5 53. Qe1 (53. gxh5 $2 Nxc3 54. bxc3 a4 $19) 53... Qh8 54. Qxd1 Rd7 $14) 52... Ne3 {[%emt 0:00:35]} 53. b6 {[%emt 0:00:35]} Rb7 {[%emt 0:00:31]} 54. Ba6 {[%emt 0:00:33]} Rb8 {[%emt 0:00:20]} 55. b7 {[%emt 0:00:28]} Qg7 {[%emt 0:00:27]} 56. Nf5 {[%emt 0:02:27]} Qg5 {[%emt 0:00:41]} 57. h4 {[%emt 0:00:40]} Qd8 {[%emt 0:00:22]} 58. Nxe3 {[%emt 0:01:02]} fxe3 {[%emt 0:00:21]} 59. Qxe3 {[%emt 0:00:02]} Qc7 {[%emt 0:00:49]} 60. Qg5+ {[%emt 0:00:11]} 1-0